bitfinex/quotes_ETHUSD_20260103
["timestamp","ask_amount","ask_price","bid_price","bid_amount"]
[1767424685531,2.4005303,3090.1,3089.4,0.002]
[1767424685757,3.47631288,3090.0,3089.4,0.002]
[1767424686350,2.4005303,3089.8,3088.3,2.35952092]
[1767424686527,0.24005303,3090.0,3089.2,2.35952092]
[1767424686728,0.849,3090.2,3089.4,2.35952092]
[1767424686934,3.23555957,3090.7,3089.4,2.39188966]
[1767424687141,3.23703722,3090.8,3089.4,2.35952092]
[1767424687370,3.88427274,3090.8,3089.6,2.35952092]
[1767424687569,0.64883552,3090.8,3089.8,2.35952092]
[1767424687777,0.64883552,3090.8,3090.0,2.35952092]
[1767424687778,0.0016,3090.8,3090.0,2.35952092]
[1767424690163,0.0016,3090.8,3089.7,5.59605217]
[1767424690369,2.4021303,3090.8,3089.7,2.35952092]
[1767424690958,2.4005303,3090.6,3089.1,0.002]
[1767424691350,2.4907452,3090.4,3089.1,0.002]
[1767424691551,2.4005303,3090.2,3088.6,2.35952092]
[1767424691740,6.47270138,3089.9,3088.6,2.35952092]
[1767424691940,8.87323168,3089.9,3088.6,2.35952092]
[1767424692177,6.47270138,3089.9,3088.7,2.35952092]
[1767424692738,3.23635069,3089.9,3088.7,2.35952092]
[1767424692943,3.8836115,3089.9,3088.9,2.35952092]
[1767424693143,7.11996219,3089.9,3088.9,2.35952092]
[1767424693344,0.64726081,3089.9,3089.1,2.35952092]
[1767424693654,3.48503835,3090.3,3089.1,2.35952092]
[1767424693852,3.48503835,3090.3,3089.2,6.47416806]
[1767424694052,3.48503835,3090.3,3089.3,2.35952092]
[1767424694744,3.23624903,3090.8,3089.3,2.35952092]
[1767424694745,0.0018,3090.8,3089.3,2.35952092]
[1767424694972,3.23551299,3090.7,3089.3,2.35952092]
[1767424695318,7.32004693,3090.7,3089.3,2.35952092]
[1767424696209,7.32004693,3090.7,3089.4,3.23687447]
[1767424696881,7.32004693,3090.7,3089.4,5.59639539]
[1767424697187,2.4005303,3090.4,3089.3,0.0008]
[1767424697699,2.4005303,3090.2,3089.3,0.0008]
[1767424697893,3.2495303,3090.1,3089.3,0.0008]
[1767424698301,6.4724919,3090.0,3089.3,0.0008]
[1767424698491,0.97220222,3089.9,3089.3,0.0008]
[1767424699479,0.97220222,3089.9,3088.7,2.35952092]
[1767424699670,0.0008,3089.7,3088.7,2.35952092]
[1767424699872,0.0016,3089.7,3088.7,2.35952092]
[1767424700513,3.2495303,3089.6,3088.5,0.851]
[1767424700810,0.32511303,3089.5,3088.5,0.851]
[1767424701003,2.72564333,3089.5,3088.5,0.002]
[1767424701207,2.81585823,3089.5,3088.0,2.35952092]
[1767424701415,2.81585823,3089.5,3087.9,3.24038151]
[1767424701416,2.4005303,3089.1,3087.9,0.002]
[1767424701580,0.849,3089.0,3087.9,2.36152092]
[1767424701902,0.849,3088.9,3087.9,5.59992604]
[1767424702076,0.849,3088.9,3087.9,2.36152092]
[1767424702282,0.849,3089.0,3088.0,5.59786288]
[1767424702495,4.08597925,3089.3,3088.2,2.35952092]
[1767424702804,4.45239756,3089.4,3088.2,2.35952092]
[1767424703180,6.8403093,3089.4,3088.2,2.35952092]
[1767424703886,7.6893093,3089.4,3088.2,2.35952092]
[1767424704086,7.6893093,3089.4,3088.3,0.29195072]
[1767424704393,6.85292786,3089.4,3088.3,3.52991672]
[1767424704599,10.0898396,3089.4,3088.3,3.52991672]
[1767424705202,10.0898396,3089.4,3088.3,3.237966]
[1767424705515,10.0898396,3089.4,3088.2,2.35832092]
[1767424705890,10.0898396,3089.4,3088.2,5.59637375]
[1767424706534,10.0898396,3089.4,3088.3,3.23796337]
[1767424707205,3.60339756,3089.4,3088.4,2.35952092]
[1767424707386,3.60339756,3089.4,3088.5,0.88355117]
[1767424707582,0.849,3089.6,3088.5,0.88355117]
[1767424707804,3.23739579,3089.7,3088.6,2.35952092]
[1767424708024,0.0008,3089.7,3088.6,2.35952092]
[1767424708573,0.0008,3089.7,3088.8,2.35952092]
[1767424710194,0.0008,3089.7,3088.9,2.40785651]
[1767424710410,0.0008,3090.3,3089.3,2.40785651]
[1767424710712,0.0008,3090.3,3089.5,2.40785651]
[1767424712712,0.0008,3090.3,3089.7,2.40785651]
[1767424713403,0.0008,3090.3,3089.9,2.40785651]
[1767424714598,0.0008,3090.3,3090.0,3.23624595]
[1767424714916,0.0008,3090.3,3090.1,2.40785651]
[1767424715996,0.0018,3090.8,3090.1,2.40785651]
[1767424716592,0.0018,3090.8,3090.1,5.6439876]
[1767424716793,0.0018,3090.8,3090.0,0.97294523]
[1767424717095,0.0018,3090.8,3089.9,2.40865659]
[1767424719095,0.0018,3090.8,3089.9,0.00080008]
[1767424719921,0.0018,3090.8,3089.9,0.00280008]
[1767424721220,2.49893777,3090.7,3089.9,0.00280008]
[1767424721620,2.49893777,3090.6,3089.9,0.00280008]
[1767424721927,2.83373155,3090.5,3089.9,0.00280008]
[1767424722615,6.47165414,3090.4,3089.9,0.00280008]
[1767424722790,8.97059191,3090.4,3089.9,0.00280008]
[1767424723618,3.57056238,3090.5,3089.9,0.00280008]
[1767424723619,3.57051615,3090.5,3089.9,0.00280008]
[1767424723823,3.2355251,3090.7,3089.9,2.41065659]
[1767424724525,3.23723857,3090.8,3089.9,2.41065659]
[1767424724914,0.0018,3090.8,3090.0,2.40785651]
[1767424725893,3.2367839,3091.3,3090.5,2.40785651]
[1767424727022,0.0018,3091.3,3090.5,2.40785651]
[1767424727215,0.0018,3091.3,3090.6,2.40785651]
[1767424728022,0.001,3090.8,3090.6,2.40785651]
[1767424730525,0.0018,3091.3,3090.7,2.40785651]
[1767424733097,2.50073777,3091.3,3090.4,0.84980008]
[1767424733324,0.25007378,3091.2,3090.4,0.84980008]
[1767424733601,6.4701886,3091.1,3090.4,0.84980008]
[1767424733923,6.4701886,3091.1,3090.4,0.00080008]
[1767424734122,9.7052829,3091.1,3090.4,0.00080008]
[1767424734326,6.4701886,3091.1,3090.4,0.00080008]
[1767424734530,0.67202624,3091.0,3090.4,0.00080008]
[1767424735234,2.49893777,3090.9,3090.4,0.00080008]
[1767424735534,3.2354083,3090.8,3090.4,0.00080008]
[1767424735701,3.2354083,3090.8,3089.9,0.00280008]
[1767424735702,6.4708166,3090.8,3089.9,0.00280008]
[1767424735901,6.47161668,3090.8,3089.9,0.00280008]
[1767424736103,2.49893777,3090.6,3089.9,0.00280008]
[1767424736739,1.22059599,3090.7,3089.9,3.23909104]
[1767424736900,3.23620838,3090.8,3089.9,2.41065659]
[1767424737235,6.47161668,3090.8,3090.0,2.40785651]
[1767424737440,3.23620838,3090.8,3089.9,0.00280008]
[1767424737645,2.49893777,3090.7,3089.9,0.00280008]
[1767424737944,3.07245239,3090.6,3089.9,0.00280008]
[1767424738240,2.49893777,3090.6,3089.9,0.00280008]
[1767424739519,8.88073216,3090.5,3089.9,0.00280008]
[1767424739710,2.40928742,3090.4,3089.9,0.00280008]
[1767424740054,2.40928742,3090.4,3089.4,0.851]
[1767424740345,9.70716711,3090.5,3089.4,0.002]
[1767424740346,2.40928742,3090.2,3089.4,0.002]
[1767424740549,2.65029617,3090.1,3089.4,0.002]
[1767424740710,2.40928742,3090.0,3089.0,0.001]
[1767424740910,2.40928742,3089.6,3088.2,0.002]
[1767424741117,2.40928742,3089.4,3088.2,0.002]
[1767424741306,2.40928742,3089.4,3087.6,0.849]
[1767424741537,3.24000805,3088.7,3087.7,3.23858455]
[1767424741717,0.0024,3088.7,3087.8,2.32094292]
[1767424742067,3.48685832,3089.5,3088.3,2.28855741]
[1767424742068,6.4735394,3089.5,3088.3,2.28855741]
[1767424742270,6.4735394,3089.5,3088.4,0.22885574]
[1767424742559,3.2367697,3089.5,3088.4,0.22885574]
[1767424742725,8.88282682,3089.5,3088.4,0.22885574]
[1767424743136,2.40928742,3089.4,3088.3,0.03478051]
[1767424743622,6.4735394,3089.5,3088.3,0.00240024]
[1767424743623,2.40928742,3089.2,3088.3,0.00240024]
[1767424744065,2.40928742,3089.0,3088.3,0.00240024]
[1767424744214,2.40928742,3089.2,3088.3,0.00240024]
[1767424744411,2.40928742,3089.1,3088.3,0.00240024]
[1767424744614,2.40928742,3088.9,3088.3,0.00240024]
[1767424745726,3.23750323,3088.8,3088.3,0.00240024]
[1767424746228,3.23741322,3088.9,3088.3,0.00240024]
[1767424747514,3.23733079,3089.0,3088.3,0.00240024]
[1767424747930,4.08610639,3089.2,3088.3,0.00240024]
[1767424748150,0.64953938,3089.1,3088.3,0.00240024]
[1767424749650,0.64953938,3089.1,3088.3,0.00440024]
[1767424749949,3.23729362,3089.0,3088.3,0.00440024]
[1767424751520,0.64953938,3089.1,3088.3,0.00440024]
[1767424751727,3.25828742,3089.3,3088.3,0.00440024]
[1767424751958,0.001,3089.4,3088.4,5.52647995]
[1767424752153,0.001,3089.4,3088.5,2.28855741]
[1767424752356,0.001,3089.4,3088.6,0.87644025]
[1767424752541,3.23789849,3089.4,3088.6,0.87644025]
[1767424752725,3.23791977,3089.4,3088.6,0.87644025]
[1767424752935,0.001,3089.4,3088.6,3.16499766]
[1767424753820,0.001,3089.4,3088.7,2.28855741]
[1767424754021,0.001,3089.4,3088.8,3.23750323]
[1767424754214,0.001,3089.4,3088.8,5.52606064]
[1767424754731,0.001,3089.4,3088.9,2.28855741]
[1767424755752,0.001,3089.4,3088.8,3.23750323]
[1767424756266,0.001,3089.4,3088.8,6.47500646]
[1767424756566,0.001,3089.4,3088.9,0.76405062]
[1767424756931,0.001,3089.4,3088.9,3.05260803]
[1767424757464,0.001,3089.4,3089.0,2.28855741]
[1767424757932,0.00080008,3089.7,3089.2,2.28855741]
[1767424760259,0.00080008,3089.7,3089.2,5.52563639]
[1767424760562,0.00080008,3089.7,3089.2,6.40191714]
[1767424761369,0.00080008,3089.7,3089.2,9.63900117]
[1767424761585,0.00080008,3089.7,3089.2,10.48800117]
[1767424763575,0.00080008,3089.7,3089.3,2.3209272]
[1767424764379,0.00080008,3090.3,3089.3,2.32172736]
[1767424764583,0.00080008,3090.3,3089.5,2.28855741]
[1767424764779,0.00080008,3090.3,3089.6,8.76188729]
[1767424764780,8e-08,3090.3,3089.6,8.76188729]
[1767424765080,8e-08,3090.3,3089.7,0.849]
[1767424766049,2.4092875,3090.3,3089.4,1.37582552]
[1767424766375,2.4092875,3090.3,3089.5,3.23674922]
[1767424767275,5.64523254,3090.3,3089.5,3.23674922]
[1767424767482,2.40928742,3090.2,3089.5,3.23674922]
[1767424767864,2.40928742,3090.2,3089.4,0.849]
[1767424768285,2.40928742,3090.2,3089.4,4.08587043]
[1767424768449,3.29740518,3090.2,3089.4,4.08587043]
[1767424768652,3.29740518,3090.2,3089.4,4.08583985]
[1767424769283,3.23614122,3090.1,3089.4,4.08584178]
[1767424769579,5.49765124,3090.1,3089.4,0.849]
[1767424769772,6.45903181,3090.1,3089.4,0.849]
[1767424771185,6.45903181,3090.1,3089.4,4.08586276]
[1767424771481,6.45903181,3090.1,3089.4,4.08586099]
[1767424771657,3.22369059,3090.1,3089.4,4.08586099]
[1767424771857,6.45984928,3090.1,3089.4,0.849]
[1767424772254,6.45984928,3090.1,3089.4,4.08587241]
[1767424773092,3.22369059,3090.1,3089.4,4.08587241]
[1767424773295,3.22469059,3090.1,3089.4,4.08587241]
[1767424773791,0.001,3090.1,3089.5,2.41431708]
[1767424774007,0.001,3090.1,3089.5,2.38194939]
[1767424774156,0.001,3090.1,3089.6,2.38194939]
[1767424775063,0.001,3090.1,3089.4,7.32274688]
[1767424775392,0.001,3090.1,3089.7,2.38194939]
[1767424775559,0.001,3090.1,3089.8,0.88552793]
[1767424775961,0.001,3090.1,3089.6,3.23666494]
[1767424777376,0.001,3090.1,3089.5,5.61871909]
[1767424777570,0.001,3090.1,3089.6,2.38194939]
[1767424778076,0.001,3090.1,3089.5,6.4735394]
[1767424778280,0.001,3090.1,3089.5,6.50590709]
[1767424778481,0.001,3090.1,3089.6,0.73549071]
[1767424779287,0.001,3090.1,3089.4,0.849]
[1767424779288,2.26251002,3090.1,3089.4,0.849]
[1767424779587,2.26151002,3089.9,3089.4,0.849]
[1767424780388,2.26151002,3089.9,3089.3,0.00080016]
[1767424780592,2.26151002,3089.6,3088.7,3.23757132]
[1767424781087,2.26231018,3089.7,3088.8,5.61942264]
[1767424781294,2.4885412,3089.7,3088.8,2.38194939]
[1767424781617,2.4885412,3089.7,3089.5,0.002]
[1767424781784,5.49817496,3089.6,3088.8,5.6194349]
[1767424781979,5.49817496,3089.6,3088.7,3.23756243]
[1767424781980,2.26151002,3089.5,3088.7,3.23756243]
[1767424782171,2.26151002,3089.5,3088.7,0.64685118]
[1767424782360,2.26151002,3089.5,3088.6,0.849]
[1767424782557,2.26151002,3089.5,3088.5,2.38194939]
[1767424783262,2.26151002,3089.5,3088.5,5.61973016]
[1767424783466,2.26151002,3089.5,3088.4,4.0868904]
[1767424783791,6.47332988,3089.6,3088.5,3.23781665]
[1767424783792,2.26151002,3089.3,3088.5,3.23781665]
[1767424783992,2.26151002,3089.3,3088.5,5.65214421]
[1767424784196,3.23683624,3089.5,3088.6,2.38194939]
[1767424785290,6.47367248,3089.5,3088.6,2.38194939]
[1767424785492,3.23683624,3089.5,3088.6,2.38194939]
[1767424785668,6.47945306,3089.5,3088.6,2.38194939]
[1767424786186,9.7162893,3089.5,3088.6,2.38194939]
[1767424786362,2.26151002,3089.4,3088.4,4.08689736]
[1767424786564,2.26151002,3089.4,3088.4,0.849]
[1767424786760,9.7162893,3089.5,3088.5,3.23774074]
[1767424786963,2.26151002,3089.4,3088.5,3.23774074]
[1767424787193,2.26151002,3089.4,3088.4,6.46883824]
[1767424787398,2.26151002,3089.4,3088.4,0.849]
[1767424788182,2.26151002,3089.2,3088.4,0.849]
[1767424788496,2.26151002,3089.2,3088.4,4.49940555]
[1767424788795,2.26151002,3089.2,3088.4,0.849]
[1767424789139,2.26151002,3089.2,3088.5,0.002]
[1767424790800,2.26151002,3089.0,3088.5,0.002]
[1767424791802,2.26151002,3089.0,3088.2,0.002]
[1767424792103,2.26151002,3088.6,3087.9,0.002]
[1767424792301,2.48790102,3088.6,3087.9,0.002]
[1767424792796,2.48790102,3088.6,3087.4,2.38194939]
[1767424793008,8.73714544,3088.5,3087.5,2.38194939]
[1767424793406,0.0902149,3088.2,3085.8,3.24062245]
[1767424793609,2.26151002,3087.7,3086.0,2.38194939]
[1767424793816,2.26151002,3087.4,3086.2,3.24019975]
[1767424793985,2.26151002,3087.4,3086.2,2.38194939]
[1767424794318,2.26151002,3087.4,3086.4,3.239917]
[1767424794477,2.26151002,3087.4,3086.5,2.38194939]
[1767424794803,12.95127084,3088.5,3086.5,2.38194939]
[1767424794804,3.2386566,3087.7,3086.6,8.86157097]
[1767424795010,2.26151002,3088.1,3086.7,2.41434644]
[1767424795309,0.849,3088.2,3086.9,2.38194939]
[1767424795525,2.26151002,3088.1,3087.0,0.0323939]
[1767424795679,2.26151002,3088.1,3087.0,2.41434329]
[1767424795879,3.464132,3088.6,3087.0,2.41434329]
[1767424796197,2.26391002,3088.7,3087.0,2.41434329]
[1767424796198,0.0024,3088.7,3087.2,2.38194939]
[1767424796397,0.0024,3088.7,3087.1,0.849]
[1767424796398,0.0024,3088.7,3087.4,2.38194939]
[1767424796636,0.0024,3088.7,3087.6,2.38194939]
[1767424796815,0.0024,3088.7,3087.9,9.71534052]
[1767424796982,0.0016,3088.7,3088.0,2.4143328]
[1767424797180,0.0016,3088.7,3088.2,2.38194939]
[1767424797392,0.0016,3088.7,3088.2,0.03238132]
[1767424797608,0.001,3088.5,3088.2,0.03238132]
[1767424798406,0.001,3088.5,3088.1,1.21296733]
[1767424798600,0.001,3088.5,3087.9,3.2708313]
[1767424799211,0.001,3088.5,3087.5,2.38194939]
[1767424799427,0.001,3088.5,3087.8,0.03238551]
[1767424799618,0.001,3088.5,3087.8,3.27091041]
[1767424799820,0.001,3088.5,3087.6,3.23867564]
[1767424799821,0.001,3088.5,3087.7,3.23862112]
[1767424800021,0.001,3088.5,3087.6,0.03238761]
[1767424800188,0.23518054,3088.5,3087.6,3.23873418]
[1767424800715,2.57438595,3088.5,3087.4,0.002]
[1767424801013,0.85,3088.4,3087.4,6.4799426]
[1767424801218,2.33920541,3088.3,3087.4,0.002]
[1767424801582,0.85,3088.3,3087.4,0.03438971]
[1767424801817,2.74800394,3088.2,3087.4,0.002]
[1767424802786,2.74800394,3088.2,3086.8,1.7383968]
[1767424802787,2.74800394,3088.2,3086.8,3.23959948]
[1767424803114,2.33920541,3088.0,3086.8,3.23959948]
[1767424803314,0.85,3087.9,3086.9,2.28416852]
[1767424803633,3.64693532,3088.2,3086.9,2.31656347]
[1767424803791,1.44861407,3088.1,3087.1,2.28416852]
[1767424804701,2.33920541,3088.0,3086.7,3.23967472]
[1767424804887,2.33920541,3088.0,3086.7,3.27207177]
[1767424805088,3.23844684,3087.9,3086.9,3.23949593]
[1767424805288,6.47689368,3087.9,3086.9,3.23949593]
[1767424805616,0.88160991,3087.8,3086.9,3.23949593]
[1767424805820,0.88160991,3087.8,3086.8,5.52373947]
[1767424807313,6.4773132,3087.7,3086.7,3.23967317]
[1767424807503,0.85,3087.6,3086.7,3.23967317]
[1767424807708,0.85,3087.6,3086.7,3.23963859]
[1767424807930,0.73273132,3087.5,3086.8,3.239584]
[1767424808305,0.73273132,3087.5,3086.8,6.47918488]
[1767424808630,0.85,3087.6,3086.6,3.23971488]
[1767424808929,9.69799844,3087.8,3086.6,3.23977974]
[1767424809130,3.18920541,3087.7,3086.5,2.28416852]
[1767424809349,2.33920541,3087.5,3086.1,0.002]
[1767424809505,0.85,3087.4,3086.3,3.24010007]
[1767424809703,0.31892054,3087.3,3086.3,3.24010007]
[1767424809931,0.31892054,3087.3,3086.2,2.28416852]
[1767424810131,0.31892054,3087.3,3086.4,3.23998693]
[1767424810331,0.31892054,3087.3,3086.3,3.24010223]
[1767424810332,0.85,3087.2,3086.3,3.24010223]
[1767424810499,2.33920541,3087.1,3086.1,3.24127359]
[1767424810704,0.31892054,3087.0,3086.2,3.24020742]
[1767424810900,0.31892054,3087.0,3086.1,0.001]
[1767424811251,0.31892054,3087.0,3075.0,0.168]
[1767424811252,2.33920541,3087.7,3086.2,2.28416852]
[1767424811541,0.85,3087.5,3086.3,2.28416852]
[1767424811701,0.0902149,3087.4,3086.3,2.28416852]
[1767424811901,0.0902149,3087.2,3086.8,0.002]
[1767424812103,2.42942031,3087.4,3085.9,5.52471422]
[1767424812297,2.42942031,3087.0,3085.9,3.27295115]
[1767424812533,3.27942031,3086.9,3085.7,0.03240755]
[1767424812736,2.33920541,3086.8,3085.7,3.24067535]
[1767424813255,2.33920541,3086.8,3085.7,3.24075574]
[1767424813412,0.85,3086.7,3085.8,2.28416852]
[1767424813612,1.58289919,3086.7,3085.8,2.28416852]
[1767424814545,0.73289919,3086.7,3086.0,2.28416852]
[1767424814747,0.85,3086.9,3086.0,2.28416852]
[1767424815441,6.47920176,3086.8,3085.8,3.24057547]
[1767424815754,6.47920176,3086.8,3085.7,2.28416852]
[1767424816049,0.73292018,3086.7,3085.8,3.2405694]
[1767424816217,0.73292018,3086.7,3085.6,3.24081372]
[1767424816218,0.73292018,3086.7,3085.9,3.24045446]
[1767424816424,3.56703564,3087.3,3086.1,2.28416852]
[1767424816746,0.85,3087.2,3086.1,2.28416852]
[1767424816920,0.32794203,3087.3,3086.2,0.0324023]
[1767424817126,0.85,3087.2,3086.3,2.28416852]
[1767424817571,3.23900603,3087.4,3086.5,2.28416852]
[1767424817729,1.40792114,3087.4,3086.6,2.28416852]
[1767424817907,0.001,3087.5,3086.6,2.28416852]
[1767424818112,0.851,3087.5,3086.8,2.28416852]
[1767424818660,4.08986639,3087.5,3086.5,2.28416852]
[1767424819748,7.32877078,3087.5,3086.5,5.52404017]
[1767424819925,4.08986639,3087.5,3086.5,5.52404017]
[1767424820119,0.40898664,3087.4,3086.5,5.52404017]
[1767424820648,0.40898664,3087.4,3086.5,8.76395593]
[1767424820850,0.40898664,3087.4,3086.5,5.52404017]
[1767424821350,0.40898664,3087.4,3086.5,2.28616852]
[1767424821513,0.49920154,3087.4,3086.5,5.52606155]
[1767424821859,4.02191986,3087.3,3086.5,5.52606155]
[1767424822056,4.02191986,3087.3,3086.5,3.24189303]
[1767424822209,7.26104249,3087.3,3086.5,0.002]
[1767424822417,6.36112527,3087.3,3086.5,0.002]
[1767424822633,9.6002479,3087.3,3086.5,0.002]
[1767424822839,2.33920541,3087.1,3085.9,2.28416852]
[1767424823057,3.27942031,3087.0,3085.9,2.28416852]
[1767424823276,2.42942031,3086.9,3085.6,5.52500645]
[1767424823436,2.66714744,3086.8,3085.6,2.28416852]
[1767424823642,2.66714744,3086.8,3085.8,3.24057473]
[1767424823866,2.33920541,3086.7,3085.7,3.2407524]
[1767424824240,0.32794203,3086.8,3085.7,5.52492092]
[1767424824438,3.23964226,3086.8,3085.7,8.76567666]
[1767424824662,3.32974133,3086.9,3085.8,2.28416852]
[1767424824868,3.23952643,3086.9,3085.9,2.31657397]
[1767424825065,3.23907621,3087.3,3085.9,2.31657397]
[1767424825265,0.85,3087.1,3085.9,2.31657397]
[1767424825471,1.25890762,3087.1,3086.1,2.28416852]
[1767424825841,4.4982233,3087.1,3086.2,3.2402307]
[1767424826041,0.40890762,3087.1,3086.2,8.76462992]
[1767424826253,0.85,3087.2,3086.3,2.28416852]
[1767424826705,4.17943664,3087.2,3086.3,2.28416852]
[1767424826858,7.41865838,3087.2,3086.3,2.28416852]
[1767424827065,0.0902149,3087.1,3086.1,3.2403151]
[1767424827379,0.0902149,3087.1,3086.1,6.48065079]
[1767424827583,0.0902149,3087.1,3086.0,2.28416852]
[1767424827584,1.74078638,3087.0,3086.0,5.52458383]
[1767424827950,3.23949593,3086.9,3086.0,5.52458383]
[1767424828344,6.56920676,3086.9,3085.6,2.28416852]
[1767424828546,2.33920541,3086.8,3085.6,2.28416852]
[1767424828866,2.42942031,3086.8,3085.5,0.002]
[1767424829063,3.23004663,3086.7,3086.3,0.001]
[1767424829263,2.42942031,3086.6,3085.5,0.002]
[1767424829572,0.0902149,3086.4,3085.5,0.002]
[1767424830090,3.33031832,3086.4,3085.5,0.002]
[1767424830245,0.64958042,3086.3,3085.5,0.002]
[1767424830668,0.64958042,3086.3,3085.5,0.03440965]
[1767424830985,0.85,3086.2,3085.5,0.001]
[1767424831574,0.64958042,3086.3,3085.5,0.001]
[1767424831879,0.85,3086.3,3085.5,2.43563801]
[1767424832076,3.23999723,3086.5,3085.6,3.24086077]
[1767424832262,0.85,3086.4,3085.7,2.43463801]
[1767424832461,6.56925182,3086.9,3085.7,2.43463801]
[1767424832660,0.85,3086.5,3085.7,2.43463801]
[1767424832858,0.85,3086.5,3085.8,2.43463801]
[1767424834254,0.85,3086.5,3085.8,3.24060342]
[1767424835082,0.85,3086.5,3085.8,6.48125414]
[1767424835272,0.0902149,3086.9,3085.8,6.48125414]
[1767424835456,3.23920927,3087.2,3085.9,2.46704346]
[1767424835652,0.33294242,3087.1,3086.1,2.43463801]
[1767424835877,0.85,3087.0,3086.2,2.46704031]
[1767424836175,4.08948628,3087.0,3086.2,2.43463801]
[1767424836374,2.58858744,3086.9,3085.8,2.43463801]
[1767424836577,7.32897256,3087.0,3085.5,0.001]
[1767424836578,2.49837254,3086.7,3085.5,2.43563801]
[1767424836784,2.84744618,3086.6,3085.6,3.24077299]
[1767424836998,3.34837254,3086.5,3085.8,0.002]
[1767424837298,0.0902149,3086.2,3085.5,0.001]
[1767424837492,2.58858744,3086.2,3085.5,0.001]
[1767424837661,2.58858744,3086.2,3085.2,0.002]
[1767424837866,0.26788023,3086.2,3085.3,3.24115721]
[1767424838073,0.26788023,3086.2,3085.3,3.23917178]
[1767424838271,0.26788023,3086.2,3085.2,0.002]
[1767424838479,0.001,3087.0,3085.4,2.43463801]
[1767424838688,0.85,3086.6,3085.4,2.43463801]
[1767424839001,0.85,3086.6,3085.6,2.43463801]
[1767424839998,0.85,3086.8,3085.8,2.43463801]
[1767424840156,1.5829801,3086.8,3085.9,5.67518371]
[1767424840358,4.82262537,3086.8,3085.8,3.48732826]
[1767424840688,0.7329801,3086.8,3085.9,2.43463801]
[1767424840877,0.85,3086.7,3085.9,2.43463801]
[1767424841386,2.58858744,3086.6,3085.4,2.43463801]
[1767424841552,2.58858744,3086.5,3085.3,3.24114753]
[1767424841753,2.49837254,3085.6,3084.0,2.43463801]
[1767424841951,0.24983725,3085.5,3084.6,2.43463801]
[1767424842151,4.09088267,3085.6,3084.7,3.24180633]
[1767424842355,3.24061836,3085.9,3084.7,8.91825067]
[1767424842653,0.85,3085.8,3084.7,8.91825067]
[1767424842854,0.85,3085.8,3084.7,5.67644434]
[1767424843088,0.85,3085.8,3084.8,0.56764443]
[1767424843892,3.34837254,3085.8,3084.8,0.56764443]
[1767424844075,2.49837254,3085.7,3084.5,0.002]
[1767424844280,2.49837254,3085.5,3084.5,0.002]
[1767424845008,3.24065072,3085.8,3084.5,2.43663801]
[1767424845283,2.49837254,3085.4,3084.2,4.16438584]
[1767424845454,2.49837254,3085.2,3084.2,0.92205396]
[1767424845655,2.49837254,3085.0,3084.2,0.92205396]
[1767424846381,2.49837254,3084.8,3084.2,0.92205396]
[1767424846584,5.73965349,3085.2,3084.2,4.16438584]
[1767424846785,0.85,3085.1,3084.3,0.41643858]
[1767424847082,5.73965349,3085.2,3084.3,0.41643858]
[1767424847287,0.85,3085.1,3084.3,0.41643858]
[1767424847492,2.49837254,3085.2,3084.3,0.41643858]
[1767424847683,0.85,3085.1,3084.3,0.41643858]
[1767424847860,0.85,3085.1,3084.4,0.78231563]
[1767424848264,0.85,3085.1,3084.5,3.24201653]
[1767424848491,0.85,3085.1,3084.5,6.48403306]
[1767424848795,0.85,3085.1,3084.5,3.24201653]
[1767424848997,2.49837254,3085.6,3084.5,6.48403306]
[1767424849157,2.49837254,3086.0,3084.7,2.43463801]
[1767424849487,0.85,3086.2,3084.9,2.43463801]
[1767424849991,2.58858744,3086.1,3084.9,2.43463801]
[1767424850158,5.8285032,3086.5,3085.1,2.43463801]
[1767424850363,3.23991576,3086.5,3085.5,2.43463801]
[1767424850560,3.23960088,3086.8,3085.5,2.43463801]
[1767424850766,0.85,3086.7,3085.5,2.43463801]
[1767424850967,3.23960088,3086.8,3085.5,2.43463801]
[1767424851162,1.7477474,3086.7,3085.7,2.43463801]
[1767424851362,0.85,3086.7,3085.7,2.43463801]
[1767424852513,0.85,3086.7,3085.8,6.48130144]
[1767424852665,0.85,3086.7,3085.8,8.91593945]
[1767424852865,0.001,3087.0,3085.9,2.43463801]
[1767424853164,0.851,3087.0,3085.9,2.43463801]
[1767424853386,0.851,3087.0,3086.0,3.32623196]
[1767424853563,0.851,3087.0,3086.1,2.43463801]
[1767424853887,0.851,3087.0,3085.8,6.48130144]
[1767424853888,4.09045436,3087.0,3085.8,6.48130144]
[1767424854408,0.001,3087.0,3085.9,2.43463801]
[1767424854563,0.85,3086.9,3085.9,2.43463801]
[1767424854766,0.85,3086.9,3086.0,0.56752887]
[1767424855000,0.85,3086.9,3085.9,2.43463801]
[1767424855001,2.49837254,3086.9,3085.6,9.80799939]
[1767424855303,0.85,3086.8,3085.6,9.80799939]
[1767424855501,0.85,3086.8,3085.7,2.43463801]
[1767424855691,0.85,3086.7,3085.7,2.43463801]
[1767424855888,0.85,3086.7,3085.7,3.41543795]
[1767424856727,4.08977598,3086.7,3085.8,5.67528873]
[1767424856907,9.82751324,3086.9,3085.5,2.43463801]
[1767424857211,2.58858744,3086.8,3085.5,5.67556698]
[1767424857408,2.49837254,3086.7,3085.6,3.24078505]
[1767424857572,2.49837254,3086.7,3085.7,3.24072949]
[1767424857775,2.49837254,3086.7,3085.6,3.24078484]
[1767424857974,2.49837254,3086.7,3085.5,2.43463801]
[1767424857975,2.49837254,3086.7,3085.5,3.2409214]
[1767424858174,2.85551642,3086.6,3085.1,2.43463801]
[1767424858376,2.85551642,3086.6,3085.2,2.43463801]
[1767424858816,8.97820406,3086.5,3085.3,2.43463801]
[1767424858979,3.23991576,3086.5,3085.4,2.43463801]
[1767424859406,0.85,3086.4,3085.4,2.43463801]
[1767424859600,0.40899158,3086.3,3085.4,2.43463801]
[1767424860603,0.40899158,3086.3,3085.5,0.03240965]
[1767424860804,2.39194664,3085.5,3084.6,0.001]
[1767424861006,0.85,3085.4,3084.6,0.001]
[1767424861370,2.39194664,3085.6,3085.0,0.002]
[1767424861575,0.85,3085.5,3085.0,0.002]
[1767424861776,2.39194664,3086.0,3085.0,0.002]
[1767424862008,2.39194664,3085.8,3085.0,0.002]
[1767424862704,4.09081633,3085.7,3085.0,0.002]
[1767424863106,5.63220031,3086.2,3085.0,0.002]
[1767424863304,0.85,3086.2,3085.0,2.29227278]
[1767424863509,2.39194664,3085.2,3083.4,0.002]
[1767424863812,3.24194664,3085.1,3083.4,2.29227278]
[1767424864016,2.39194664,3085.0,3084.2,1e-08]
[1767424864247,2.7161413,3084.9,3084.2,1e-08]